bitfinex/quotes_SOLUSD_20251208
["timestamp","ask_amount","ask_price","bid_price","bid_amount"]
[1765185505228,0.8,138.13,138.09,30.71910516]
[1765185505551,8.92,138.13,138.1,4.70373316]
[1765185505733,8.92,138.13,138.11,7.24060531]
[1765185505929,0.8,138.13,138.11,7.24060531]
[1765185506337,8.92,138.13,138.11,7.24060531]
[1765185506648,0.1,138.13,138.12,5.37373316]
[1765185507838,0.1,138.13,138.12,7.24008108]
[1765185509834,0.1,138.13,138.11,11.9442863]
[1765185510048,0.1,138.13,138.1,7.24074076]
[1765185510252,0.1,138.13,138.1,7.91074076]
[1765185510951,0.1,138.13,138.09,16.05143128]
[1765185510952,7.99962898,138.13,138.09,16.05143128]
[1765185511155,7.99962898,138.13,138.08,39.78726963]
[1765185511156,12.70336214,138.13,138.08,4.70373316]
[1765185511344,0.66,138.12,138.08,4.70373316]
[1765185511742,0.66,138.12,138.09,11.94523618]
[1765185512349,0.1,138.13,138.1,13.51367808]
[1765185512561,0.1,138.13,138.1,14.18367808]
[1765185512732,0.1,138.13,138.11,4.70373316]
[1765185512936,0.1,138.13,138.12,7.24008108]
[1765185513256,0.1,138.13,138.12,21.42375916]
[1765185513455,0.1,138.13,138.12,37.73262316]
[1765185516042,0.76,138.13,138.09,21.68259716]
[1765185517066,12.70356331,138.13,138.09,7.24153404]
[1765185517273,4.70373316,138.1,138.02,0.67]
[1765185517557,50.52758649,138.13,138.02,0.67]
[1765185517558,4.70373316,138.08,138.03,23.55366585]
[1765185517734,4.70373316,138.07,138.03,7.24480185]
[1765185517929,16.308864,138.12,138.02,18.7825995]
[1765185517930,4.70373316,138.06,138.02,7.91517603]
[1765185518132,4.70373316,138.07,138.02,7.91517603]
[1765185518565,5.36373316,138.07,138.02,7.91517603]
[1765185519166,12.60676019,138.07,138.02,7.91517603]
[1765185521246,4.70373316,138.05,138.01,32.36464948]
[1765185521445,4.70373316,138.05,138.02,7.24531411]
[1765185521646,0.66,138.06,138.02,7.24531411]
[1765185521647,12.80373316,138.06,138.02,7.24531411]
[1765185521852,8.1,138.06,138.02,7.24531411]
[1765185522069,13.46373316,138.06,138.02,7.24531411]
[1765185522269,0.66,138.05,138.01,33.03446947]
[1765185523559,7.90384145,138.05,138.01,32.36446947]
[1765185523871,0.66,138.05,138.01,32.36446947]
[1765185524280,0.66,138.05,138.01,33.03446947]
[1765185525268,7.90389655,138.05,138.01,16.308864]
[1765185525572,16.02389655,138.05,138.01,16.308864]
[1765185525754,4.70373316,138.03,137.98,6.213e-05]
[1765185525953,4.70373316,138.03,137.98,8.81000705]
[1765185526151,0.66,138.02,137.98,8.81000705]
[1765185526366,0.66,138.02,137.98,7.24741748]
[1765185526367,5.36373316,138.02,137.98,7.24741748]
[1765185527046,0.66,138.02,137.98,7.24741748]
[1765185527468,7.9054079,138.02,137.98,7.24741748]
[1765185528261,7.2454079,138.02,137.98,7.24741748]
[1765185528462,0.66,138.01,137.98,7.24741748]
[1765185528758,7.90596919,138.01,137.98,6.213e-05]
[1765185528962,12.60970235,138.01,137.98,6.213e-05]
[1765185529163,0.66,138.0,137.98,6.213e-05]
[1765185529359,8.12,138.01,137.98,8.81000705]
[1765185529563,8.81,138.01,137.98,6.213e-05]
[1765185530069,20.75962693,138.01,137.98,6.213e-05]
[1765185530267,5.39373316,138.0,137.98,6.213e-05]
[1765185530668,0.69,137.99,137.98,6.213e-05]
[1765185531181,7.91670296,138.0,137.98,6.213e-05]
[1765185531490,7.24670296,138.0,137.98,6.213e-05]
[1765185531776,0.67,137.99,137.98,6.213e-05]
[1765185532369,12.6206351,137.99,137.98,6.213e-05]
[1765185533571,7.91690194,137.99,137.98,6.213e-05]
[1765185536874,8.79,138.03,137.98,2.55351556]
[1765185537087,8.79,138.03,137.99,1.88345343]
[1765185537278,0.67,138.02,137.99,1.88345343]
[1765185537980,15.36491375,138.03,138.01,1.88345343]
[1765185537981,8.12,138.03,138.01,1.88345343]
[1765185538296,8.12,138.03,138.0,1.88345343]
[1765185538469,8.12,138.03,138.0,2.55345343]
[1765185538670,8.12,138.03,138.0,5.37466711]
[1765185538870,8.12,138.03,138.0,4.70466711]
[1765185539079,8.79,138.03,138.0,11.95068314]
[1765185539894,0.67,138.03,138.0,11.95068314]
[1765185540369,8.79,138.03,138.0,11.95068314]
[1765185540767,8.78,138.03,138.0,11.95068314]
[1765185541176,15.36491794,138.03,137.98,21.01359324]
[1765185541397,0.66,138.02,137.98,23.55601656]
[1765185541700,4.70466711,138.0,137.98,6.213e-05]
[1765185541898,8.78,137.99,137.98,6.213e-05]
[1765185542672,8.12,137.99,137.98,6.213e-05]
[1765185543083,8.12,137.99,137.98,11.9521564]
[1765185543283,7.90544523,138.02,137.98,11.9521564]
[1765185543593,8.78,138.01,137.98,7.24748929]
[1765185543797,8.78,138.01,137.98,6.213e-05]
[1765185543977,8.78,138.0,137.98,6.213e-05]
[1765185544377,0.66,137.99,137.98,6.213e-05]
[1765185546523,7.90690194,137.99,137.98,6.213e-05]
[1765185550215,15.55791696,137.99,137.98,6.213e-05]
[1765185554117,16.308864,138.01,137.98,0.66006213]
[1765185554442,8.12,138.01,137.98,8.31107715]
[1765185554739,0.66,138.0,137.98,6.213e-05]
[1765185554939,7.90637816,138.0,137.98,6.213e-05]
[1765185555623,0.66,137.99,137.98,6.213e-05]
[1765185556006,16.02603245,138.01,137.98,6.213e-05]
[1765185556328,8.12,138.01,137.99,7.65101502]
[1765185556528,7.90405807,138.05,138.0,8.31101502]
[1765185556708,8.12,138.04,138.0,8.31101502]
[1765185556907,8.78,138.04,138.0,15.55695342]
[1765185557304,16.02441152,138.04,138.0,15.55695342]
[1765185557504,16.02441152,138.04,138.0,14.89695342]
[1765185557733,0.66,138.03,137.99,23.70770579]
[1765185557934,0.66,138.03,137.99,24.36770579]
[1765185558234,0.66,138.03,138.0,7.24635956]
[1765185560227,15.36441152,138.04,138.0,15.55737458]
[1765185560431,16.02441152,138.04,138.0,15.55737458]
[1765185560735,0.66,138.03,138.0,14.89737458]
[1765185562238,15.36436562,138.04,138.0,15.60737458]
[1765185562412,16.06436562,138.04,138.0,15.60737458]
[1765185562612,16.06436562,138.04,138.0,14.89737458]
[1765185562919,0.7,138.03,138.0,14.89737458]
[1765185563810,8.12,138.04,138.0,15.60737458]
[1765185564039,8.12,138.04,138.01,7.65101502]
[1765185564343,8.12,138.04,138.02,7.65101502]
[1765185564515,8.12,138.04,138.01,8.36101502]
[1765185564929,8.82,138.04,138.01,7.65101502]
[1765185565358,8.12,138.04,138.01,7.65101502]
[1765185565533,8.12,138.04,138.01,14.89666765]
[1765185565830,8.82,138.04,138.01,14.89666765]
[1765185566030,8.12,138.04,138.02,7.65101502]
[1765185566545,7.24337725,138.06,138.03,7.65101502]
[1765185566758,8.1,138.05,138.03,7.65101502]
[1765185566934,8.1,138.05,138.02,7.24521967]
[1765185566935,0.7,138.04,138.02,7.24521967]
[1765185567133,8.8,138.05,138.02,7.24521967]
[1765185569539,16.0439502,138.05,138.01,14.89671835]
[1765185569746,0.7,138.04,138.01,14.89671835]
[1765185569946,16.0439502,138.05,138.01,15.60671835]
[1765185570558,16.0439502,138.05,138.01,14.89671835]
[1765185570559,0.7,138.04,138.01,14.89671835]
[1765185571152,8.1,138.05,138.02,14.89629898]
[1765185571359,0.7,138.06,138.03,7.65101502]
[1765185571658,8.1,138.05,138.02,15.60629898]
[1765185572951,8.8,138.05,138.02,7.24528396]
[1765185575861,0.7,138.04,138.01,14.89668543]
[1765185576067,16.04400815,138.05,138.01,15.60668543]
[1765185576543,8.35101502,138.04,137.98,7.24719885]
[1765185576937,0.7,138.03,137.98,7.24719885]
[1765185577152,8.1,138.02,137.98,7.24719885]
[1765185577350,15.34551634,138.02,137.98,7.24719885]
[1765185577559,0.7,138.01,137.98,7.24719885]
[1765185578259,8.1,138.02,137.98,7.95719885]
[1765185578556,8.8,138.02,137.98,15.60821387]
[1765185579547,16.04539315,138.02,137.98,7.95719885]
[1765185579747,0.7,138.01,137.98,7.24719885]
[1765185580675,8.1,138.02,137.98,7.95719885]
[1765185580861,8.8,138.02,137.98,7.95719885]
[1765185581477,8.8,138.02,137.98,29.01732874]
[1765185582154,0.7,138.01,137.98,28.30732874]
[1765185582879,0.7,138.01,137.98,29.01732874]
[1765185583056,8.8,138.02,137.98,29.01732874]
[1765185583472,8.8,138.02,137.98,7.24719885]
[1765185583473,0.7,138.01,137.98,7.24719885]
[1765185584772,8.1,138.02,137.98,7.24719885]
[1765185585073,8.1,138.01,137.99,9.51994492]
[1765185585281,8.1,138.01,137.99,8.80994492]
[1765185585453,8.1,138.01,137.98,28.30732874]
[1765185585454,0.7,138.01,137.98,7.24719885]
[1765185587781,7.94587301,138.01,137.98,6.213e-05]
[1765185587981,10.887435,138.01,137.98,6.213e-05]
[1765185588165,0.7,138.0,137.98,6.213e-05]
[1765185588364,8.1,137.99,137.98,6.213e-05]
[1765185588772,8.8,137.99,137.98,6.213e-05]
[1765185589661,8.1,137.99,137.98,6.213e-05]
[1765185589861,8.8,137.99,137.98,6.213e-05]
[1765185591288,8.82,137.99,137.98,6.213e-05]
[1765185594887,16.06690194,137.99,137.98,6.213e-05]
[1765185595086,19.00846393,137.99,137.98,6.213e-05]
[1765185596494,16.06690194,137.99,137.98,6.213e-05]
[1765185598000,19.00846393,137.99,137.98,6.213e-05]
[1765185604783,17.95102908,137.99,137.98,6.213e-05]
[1765185605799,6.0601176,138.07,137.98,11.38413419]
[1765185605978,142.00063115,138.12,137.98,11.38413419]
[1765185605979,7.24322758,138.06,138.02,1.88412714]
[1765185606378,7.90322758,138.06,138.02,0.68]
[1765185606574,7.90322758,138.06,138.01,8.80994492]
[1765185606794,7.90322758,138.06,138.02,0.68]
[1765185607182,7.90322758,138.06,138.02,9.80939651]
[1765185607683,8.1,138.07,138.05,1.88412714]
[1765185607911,8.1,138.07,138.06,1.88412714]
[1765185608077,7.24092463,138.11,138.06,1.88412714]
[1765185608278,7.24092463,138.11,138.05,16.308864]
[1765185608279,8.1,138.1,138.07,2.56412714]
[1765185609311,8.1,138.12,138.08,2.56412714]
[1765185609616,8.1,138.12,138.08,18.87299114]
[1765185609617,8.76,138.12,138.08,18.87299114]
[1765185609781,8.1,138.12,138.09,2.56412714]
[1765185609978,8.1,138.12,138.1,1.88412714]
[1765185610208,0.1,138.13,138.11,1.88412714]
[1765185610441,0.1,138.13,138.11,11.37407206]
[1765185610621,0.1,138.13,138.1,18.19299114]
[1765185610818,8.86,138.13,138.08,10.69407206]
[1765185611019,10.74412714,138.13,138.08,25.11880892]
[1765185611218,8.86,138.13,138.08,34.9246834]
[1765185611418,8.2,138.13,138.11,1.88412714]
[1765185611622,0.1,138.13,138.12,10.69407206]
[1765185611817,0.1,138.13,138.12,11.37407206]
[1765185612139,0.1,138.17,138.14,16.308864]
[1765185612327,0.1,138.17,138.15,1.88412714]
[1765185612842,0.1,138.17,138.15,0.62]
[1765185613157,0.1,138.17,138.15,2.50412714]
[1765185613441,0.1,138.17,138.15,9.74262863]
[1765185614436,0.1,138.17,138.15,2.50412714]
[1765185614614,0.1,138.17,138.15,0.62]
[1765185615542,0.1,138.17,138.15,2.50412714]
[1765185615717,0.76,138.17,138.13,7.2393804]
[1765185615916,0.76,138.17,138.13,16.66932532]
[1765185616107,0.76,138.17,138.14,7.23896812]
[1765185616315,0.1,138.17,138.14,7.23896812]
[1765185616510,0.1,138.17,138.15,2.50412714]
[1765185616831,0.1,138.17,138.16,1.88412714]
[1765185617030,0.1,138.17,138.16,11.31407206]
[1765185617839,0.1,138.17,138.16,18.552057]
[1765185618274,1e-08,138.17,138.16,18.552057]
[1765185618453,1e-08,138.17,138.16,34.860921]
[1765185620341,0.1,138.18,138.17,8.80994492]
[1765185620543,0.1,138.18,138.17,11.31407206]
[1765185621459,0.1,138.21,138.2,25.11880892]
[1765185621775,0.1,138.21,138.2,27.00293606]
[1765185621967,0.1,138.21,138.2,34.85882607]
[1765185622466,0.1,138.24,138.23,27.00293606]
[1765185622672,0.1,138.24,138.23,29.80686003]
[1765185622966,0.1,138.24,138.23,30.42686003]
[1765185624043,0.1,138.24,138.23,37.66117964]
[1765185624572,0.1,138.24,138.2,36.17945007]
[1765185624573,0.81,138.24,138.2,16.04566767]
[1765185624754,5.49805111,138.24,138.2,16.04566767]
[1765185624958,5.49805111,138.24,138.19,7.23630163]
[1765185625159,0.71,138.23,138.2,7.23579039]
[1765185625876,0.71,138.23,138.21,7.23531762]
[1765185626165,0.71,138.23,138.2,7.23571573]
[1765185626361,0.71,138.23,138.19,20.73422213]
[1765185626548,12.02230932,138.24,138.19,20.73422213]
[1765185626549,0.1,138.24,138.22,4.68805111]
[1765185626751,0.1,138.24,138.23,4.68805111]
[1765185626966,0.1,138.24,138.23,5.30805111]
[1765185627968,0.1,138.24,138.23,20.73231564]
[1765185628345,0.1,138.24,138.23,16.04426453]
[1765185628863,0.1,138.24,138.23,20.73231564]
[1765185629448,0.1,138.24,138.23,21.35231564]
[1765185630243,0.1,138.24,138.23,20.73231564]
[1765185632278,0.1,138.24,138.23,21.35231564]
[1765185633277,0.1,138.24,138.19,44.26206816]
[1765185633278,0.1,138.24,138.19,18.09025476]
[1765185633481,0.81,138.24,138.21,13.49799603]
[1765185633648,0.81,138.24,138.22,7.23453264]
[1765185633988,0.1,138.24,138.22,7.23453264]
[1765185635479,0.71,138.23,138.2,16.308864]
[1765185635853,0.71,138.23,138.2,23.54443061]
[1765185636377,0.71,138.23,138.21,7.23530573]
[1765185636571,0.1,138.24,138.21,11.92335684]
[1765185637068,0.81,138.24,138.21,11.92335684]
[1765185637286,0.81,138.24,138.22,4.68805111]
[1765185637581,0.81,138.24,138.21,11.92335684]
[1765185638989,0.1,138.24,138.23,13.49799603]
[1765185640162,0.1,138.24,138.23,8.80994492]
[1765185640957,0.1,138.24,138.23,16.04426453]
[1765185642862,0.1,138.24,138.23,21.35231564]
[1765185643275,0.1,138.24,138.23,37.66117964]
[1765185644785,0.1,138.24,138.23,34.84814263]
[1765185652718,0.1,138.24,138.23,18.53927863]
[1765185654709,0.1,138.24,138.23,26.61927863]
[1765185655009,0.8,138.24,138.23,17.91927863]
[1765185655225,0.1,138.24,138.23,34.22814263]
[1765185655830,0.1,138.24,138.23,32.35312853]
[1765185656037,0.1,138.24,138.23,34.22814263]
[1765185661535,0.77,138.24,138.23,34.22814263]
[1765185662057,0.1,138.24,138.23,34.22814263]
[1765185662422,0.77,138.24,138.23,34.22814263]
[1765185662623,0.77,138.24,138.22,7.23453213]
[1765185663151,0.77,138.24,138.23,7.23431961]
[1765185663842,2.6450141,138.24,138.18,7.23670108]
[1765185664032,1.8750141,138.22,138.18,7.23670108]
[1765185664421,0.67,138.21,138.18,7.23670108]
[1765185664622,2.5450141,138.21,138.17,7.23730063]
[1765185664843,9.78039583,138.21,138.16,8.80994492]
[1765185665045,0.67,138.2,138.17,7.23727386]
[1765185667635,2.93361304,138.19,138.14,2.93361304]
[1765185667842,2.93361304,138.19,138.15,8.80994492]
[1765185668148,0.67,138.18,138.15,7.23816978]
[1765185670480,34.39662724,138.22,138.18,8.80994492]
[1765185670481,0.67,138.22,138.18,8.80994492]
[1765185670625,174.58,138.24,138.18,8.80994492]
[1765185670626,0.67,138.21,138.19,2.93361304]
[1765185670824,3.60361304,138.21,138.17,16.308864]
[1765185671228,3.60361304,138.21,138.14,16.04877568]
[1765185671229,2.93361304,138.18,138.14,16.04877568]
[1765185671445,2.93361304,138.19,138.14,18.98238872]
[1765185671652,10.84023667,138.19,138.14,18.98238872]
[1765185671858,0.67,138.18,138.14,18.98238872]
[1765185672938,0.67,138.18,138.14,16.04877568]
[1765185676453,0.67,138.18,138.14,18.98238872]
[1765185677540,0.67,138.18,138.14,16.04877568]
[1765185677740,7.90694518,138.18,138.14,16.04877568]
[1765185678151,0.67,138.17,138.14,16.308864]
[1765185678458,0.67,138.17,138.14,19.24247704]
[1765185678658,0.67,138.17,138.15,2.93361304]
[1765185678961,0.67,138.17,138.14,19.24247704]
[1765185679256,0.67,138.17,138.14,44.57888996]
[1765185679633,8.75,138.19,138.14,45.19888996]
[1765185679834,0.67,138.18,138.14,45.19888996]
[1765185680743,0.67,138.18,138.14,44.57888996]
[1765185685969,0.67,138.18,138.14,45.19888996]
[1765185686274,0.67,138.18,138.15,3.55361304]
[1765185686583,0.67,138.18,138.15,2.93361304]
[1765185688364,0.67,138.18,138.16,7.23798494]
[1765185689159,8.77,138.19,138.16,7.23798494]
[1765185689363,0.69,138.18,138.16,7.23798494]
[1765185689876,15.29561155,138.21,138.16,10.79159798]
[1765185690081,0.69,138.23,138.2,2.93361304]
[1765185690258,0.69,138.23,138.21,2.93361304]
[1765185690645,0.1,138.24,138.22,2.93361304]
[1765185690849,0.1,138.24,138.23,19.24247704]
[1765185691768,0.1,138.24,138.23,19.86247704]
[1765185692148,0.1,138.24,138.23,27.09679665]
[1765185692378,0.1,138.24,138.23,26.47679665]
[1765185692550,0.1,138.24,138.23,27.09679665]
[1765185692752,0.1,138.24,138.23,35.90674157]
[1765185693651,0.1,138.27,138.23,62.0525406]
[1765185693993,0.1,138.27,138.26,28.05242196]
[1765185694286,0.1,138.32,138.28,8.80994492]
[1765185694571,0.1,138.32,138.31,28.05242196]
[1765185694776,0.1,138.32,138.31,28.67242196]
[1765185695678,0.1,138.32,138.3,16.308864]
[1765185695883,0.1,138.32,138.31,2.93361304]
[1765185696062,0.79,138.32,138.31,2.93361304]
[1765185696376,0.1,138.32,138.31,10.16374824]
[1765185697486,0.1,138.32,138.31,26.47261224]
[1765185697650,0.1,138.32,138.31,35.90255716]
[1765185699157,0.79,138.32,138.31,21.46258607]
[1765185699367,0.79,138.32,138.31,28.69272127]
[1765185699661,0.79,138.32,138.31,31.62633431]
[1765185699864,0.79,138.32,138.31,10.16374824]
[1765185700254,0.79,138.32,138.31,7.2301352]
[1765185700457,0.79,138.32,138.29,34.38582566]
[1765185700458,0.79,138.32,138.3,10.16410035]
[1765185700684,0.79,138.32,138.29,7.23102504]
[1765185700981,8.01984733,138.32,138.27,21.01356175]
[1765185701189,0.79,138.32,138.29,7.2310566]
[1765185701382,0.69,138.31,138.29,7.2310566]
[1765185701790,0.69,138.31,138.3,7.23065798]
[1765185702081,0.1,138.32,138.3,10.16427102]
[1765185702082,0.79,138.32,138.3,10.16427102]
[1765185702450,0.79,138.32,138.3,7.23065798]
[1765185703062,0.79,138.32,138.29,16.308864]
[1765185703376,0.79,138.32,138.29,23.53997654]
[1765185704289,0.79,138.32,138.29,26.47358958]
[1765185704875,0.79,138.32,138.3,2.93361304]
[1765185705077,0.1,138.32,138.31,28.05242196]
[1765185705392,0.1,138.32,138.31,28.67242196]
[1765185706073,0.1,138.32,138.31,35.90255716]
[1765185706286,0.1,138.32,138.31,35.28255716]
[1765185706890,0.1,138.32,138.31,40.50137931]
[1765185708375,0.1,138.32,138.31,32.21594412]
[1765185708580,0.1,138.32,138.31,40.36837931]
[1765185709792,0.82,138.32,138.31,7.2301352]
[1765185714076,0.82,138.32,138.3,7.23050957]
[1765185716086,8.0496138,138.32,138.28,7.23139634]
[1765185716599,0.72,138.31,138.28,7.23139634]
[1765185719913,7.95015566,138.31,138.28,7.23139634]
[1765185720522,7.95015566,138.31,138.26,8.15243519]
[1765185720523,7.95075363,138.3,138.26,7.23254028]
[1765185720808,7.95075363,138.3,138.25,16.308864]
[1765185720809,8.15243519,138.29,138.25,16.308864]
[1765185720985,8.87243519,138.29,138.25,16.308864]
[1765185721185,0.72,138.28,138.25,16.308864]
[1765185721490,0.72,138.28,138.24,7.23358276]
[1765185721693,8.87243519,138.28,138.24,7.23358276]
[1765185721890,16.93243519,138.28,138.24,7.23358276]
[1765185722117,0.72,138.27,138.24,7.23358276]
[1765185722615,0.72,138.27,138.23,25.31933544]
[1765185722989,0.72,138.27,138.23,7.23431961]
[1765185722990,7.95228975,138.27,138.23,7.23431961]
[1765185723190,0.72,138.26,138.23,33.47255383]
[1765185723600,0.72,138.26,138.23,7.23431961]
[1765185724086,0.72,138.26,138.19,0.62]
[1765185724087,8.15243519,138.25,138.19,26.24314672]
[1765185724303,0.72,138.24,138.2,16.308864]
[1765185724510,0.72,138.24,138.19,26.24314672]
[1765185724712,8.15243519,138.22,138.13,4.59366254]
[1765185724924,16.01424435,138.24,138.14,8.15243519]
[1765185724925,8.15243519,138.2,138.14,8.15243519]
[1765185725209,8.15243519,138.2,138.13,0.82]
[1765185725210,8.15243519,138.17,138.13,0.2]
[1765185725398,8.15243519,138.18,138.13,0.2]
[1765185725584,8.15243519,138.18,138.13,7.43936424]
[1765185725782,0.66,138.17,138.13,7.43936424]
[1765185726008,8.15243519,138.16,138.13,0.2]
[1765185726295,8.15243519,138.16,138.13,7.43952034]
[1765185726505,0.66,138.15,138.13,7.43952034]
[1765185727292,0.66,138.15,138.13,0.2]
[1765185727817,16.05095343,138.15,138.13,0.2]
[1765185728013,8.15243519,138.14,138.13,0.2]
[1765185728211,8.81243519,138.14,138.13,0.2]
[1765185728802,12.59811126,138.14,138.13,0.2]
[1765185729404,12.59811126,138.14,138.13,1e-08]
[1765185729405,21.40805618,138.14,138.13,1e-08]
[1765185730219,12.59811126,138.14,138.13,1e-08]
[1765185730407,20.65811126,138.14,138.13,1e-08]
[1765185733294,8.72,138.14,138.13,1e-08]
[1765185733805,15.95903286,138.14,138.13,1e-08]
[1765185734222,8.72,138.14,138.13,1e-08]
[1765185735596,8.06,138.14,138.13,1e-08]
[1765185736236,7.23327305,138.25,138.14,8.80994492]
[1765185736527,0.66,138.2,138.14,13.50902332]
[1765185736715,8.72,138.2,138.14,13.50902332]
[1765185737222,8.72,138.2,138.15,4.6990784]
[1765185737431,15.95590387,138.2,138.16,7.23798494]
[1765185737634,0.66,138.19,138.16,7.23798494]
[1765185742729,0.66,138.19,138.16,11.93706334]
[1765185743227,18.08679485,138.23,138.16,11.93706334]
[1765185743228,0.69,138.24,138.19,16.308864]
[1765185743435,8.06,138.23,138.2,4.6990784]
[1765185743809,8.75,138.23,138.2,4.6990784]
[1765185744009,8.06,138.23,138.19,21.0079424]
[1765185744210,0.69,138.22,138.2,7.23589001]
[1765185744614,0.69,138.22,138.19,23.54521402]
[1765185745331,8.06,138.23,138.2,4.6990784]
[1765185745555,8.75,138.23,138.2,4.6990784]
[1765185746207,8.06,138.23,138.21,4.6990784]
[1765185746405,8.06,138.23,138.21,11.93444487]
[1765185746931,8.06,138.23,138.22,4.6990784]
[1765185747326,4.6990784,138.26,138.2,7.2357781]
[1765185747526,0.69,138.23,138.2,7.2357781]
[1765185748838,7.92434237,138.23,138.19,23.54508811]
[1765185749131,0.69,138.22,138.19,23.54508811]
[1765185750132,0.69,138.22,138.19,28.24416651]
[1765185750635,0.69,138.22,138.19,23.54508811]
[1765185752449,7.92488609,138.22,138.13,0.62000001]
[1765185752618,7.92488609,138.22,138.15,7.23836189]
[1765185752619,4.6990784,138.19,138.15,7.23836189]
[1765185753117,0.69,138.18,138.15,7.23836189]
[1765185753441,0.69,138.19,138.15,25.33463405]
[1765185755622,0.69,138.19,138.15,25.95463405]
[1765185757837,0.69,138.19,138.15,25.33463405]
[1765185758037,7.92650152,138.19,138.15,7.23836189]
[1765185758339,0.69,138.21,138.16,14.12902332]
[1765185758521,0.69,138.2,138.15,25.33463405]
[1765185759037,0.69,138.2,138.15,25.95463405]
[1765185760351,0.69,138.2,138.16,2.49769413]
[1765185761842,0.69,138.2,138.16,0.62]
[1765185762441,0.69,138.2,138.17,7.23746109]
[1765185764443,0.69,138.2,138.15,25.33478102]
[1765185764644,7.92596769,138.2,138.15,25.95478102]
[1765185764833,9.80366182,138.2,138.15,7.23850886]
[1765185765038,0.69,138.19,138.15,7.23850886]
[1765185766339,9.93769413,138.18,138.13,1e-08]
[1765185766522,1.87769413,138.17,138.13,1e-08]
[1765185766724,2.56769413,138.17,138.13,7.23948234]
[1765185766953,8.06,138.18,138.13,1e-08]
[1765185766954,1.87769413,138.15,138.13,1e-08]
[1765185767125,8.06,138.14,138.13,1e-08]
[1765185767320,8.75,138.14,138.13,1e-08]
[1765185768127,0.69,138.14,138.13,1e-08]
[1765185770041,8.75,138.14,138.13,1e-08]
[1765185770555,15.98903286,138.14,138.13,1e-08]
[1765185771219,8.75,138.14,138.13,1e-08]
[1765185772235,17.86672699,138.14,138.13,1e-08]
[1765185780357,16.308864,138.11,138.07,0.2]
[1765185780527,16.308864,138.07,137.99,0.2]
[1765185780727,9.93769413,138.06,138.01,7.24582035]
[1765185780928,10.59769413,138.06,138.01,7.24582035]
[1765185781149,7.90404494,138.05,138.01,7.94582035]
[1765185781449,7.90404494,138.05,138.01,0.7]
[1765185781660,9.78173907,138.05,138.01,0.7]
[1765185782029,9.78173907,138.05,138.01,7.94577908]
[1765185782228,0.66,138.04,137.99,0.9]
[1765185782456,9.93769413,138.03,137.99,0.9]
[1765185782753,1.87769413,138.02,137.99,0.2]
[1765185782950,1.87769413,138.01,137.99,0.2]
[1765185783128,8.06,138.0,137.99,0.2]
[1765185783536,17.84407094,138.0,137.99,0.2]
[1765185783749,8.72,138.0,137.99,0.2]
[1765185783949,15.96637681,138.0,137.99,0.2]
[1765185784934,17.84407094,138.0,137.99,0.2]
[1765185790758,18.9101433,138.0,137.99,0.2]
[1765185793237,11.66376649,138.0,137.99,0.2]
[1765185793938,10.18952691,138.02,137.99,0.9]
[1765185794145,8.06,138.01,137.99,0.9]
[1765185794451,15.30586849,138.01,137.99,0.9]
[1765185795469,3.60376649,138.07,138.0,3.64376649]
[1765185795647,69.74849897,138.17,138.04,2.94376649]
[1765185795648,10.85153384,138.11,138.04,2.94376649]
[1765185795853,8.06,138.1,138.05,2.94376649]
[1765185796050,18.2448961,138.1,138.05,0.7]
[1765185796365,33.40395365,138.1,138.06,0.7]
[1765185796671,41.70457774,138.1,138.06,0.7]
[1765185797363,34.06395365,138.1,138.05,7.64062409]
[1765185797663,0.66,138.09,138.05,0.7]
[1765185797862,41.04457774,138.1,138.05,0.7]
[1765185798040,41.70457774,138.1,138.05,0.7]
[1765185798241,41.70457774,138.1,138.03,8.34062409]
[1765185798242,8.30062409,138.09,138.03,8.34062409]
[1765185798445,8.30062409,138.09,138.03,0.7]
[1765185798446,7.64062409,138.08,138.03,0.7]
[1765185798764,8.06,138.07,138.03,7.94475165]